bitfinex-derivatives/quotes_ETHF0:USTF0_20260112
["timestamp","ask_amount","ask_price","bid_price","bid_amount"]
[1768209952029,3.50744994,3123.4,3122.3,1.23258252]
[1768209953129,3.50744994,3123.4,3122.1,0.00239134]
[1768209953333,4.25087501,3123.3,3122.1,0.00239134]
[1768209953522,0.74342507,3123.2,3122.1,1.23497386]
[1768209953928,5.48345753,3123.2,3122.1,0.00239134]
[1768209954124,1.23258252,3123.0,3122.1,0.00239134]
[1768209954320,3.50744994,3123.1,3122.1,0.00239134]
[1768209961136,5.48296838,3123.0,3122.1,0.00239134]
[1768209961338,1.23258252,3122.8,3122.1,0.00239134]
[1768209961535,1.23258252,3122.8,3121.5,1.23258252]
[1768209961733,1.23258252,3122.6,3121.3,1.39297252]
[1768209961937,3.50744994,3122.6,3121.5,1.23258252]
[1768209962536,3.50744994,3122.6,3121.5,1.23609649]
[1768209963540,4.74003246,3122.6,3121.5,0.00351397]
[1768209963739,4.74003246,3122.4,3121.5,0.00351397]
[1768209963939,4.74280749,3122.4,3121.5,0.00351397]
[1768209964144,3.51022497,3122.4,3121.5,0.00351397]
[1768209965938,3.51022497,3122.4,3120.9,4.99400273]
[1768209965939,1.23258252,3122.2,3120.9,2.79758252]
[1768209966148,3.44214771,3122.3,3121.1,1.23258252]
[1768209967035,3.44214771,3122.3,3121.1,1.23529884]
[1768209967233,3.44214771,3122.3,3121.3,1.23258252]
[1768209968143,3.44214771,3122.3,3121.1,1.23529884]
[1768209969541,4.67473023,3122.2,3121.1,0.00271632]
[1768209969840,3.44214771,3122.1,3121.1,0.00271632]
[1768209973050,3.44214771,3122.1,3121.2,1.23258252]
[1768209973451,3.44214771,3122.1,3121.3,1.23258252]
[1768209973750,0.00277503,3122.4,3121.3,1.23258252]
[1768209973950,0.76431335,3122.3,3121.3,1.23258252]
[1768209974148,0.76431335,3122.2,3121.3,1.23258252]
[1768209974453,0.76431335,3122.1,3121.3,1.23258252]
[1768209974647,0.76431335,3122.0,3121.3,1.23258252]
[1768209974839,0.00277503,3122.4,3121.3,1.23258252]
[1768209975044,0.76869937,3122.3,3121.3,1.23258252]
[1768209975243,0.76869937,3122.2,3121.3,1.23258252]
[1768209975446,0.76869937,3122.1,3121.3,1.23258252]
[1768209975645,0.76869937,3122.0,3121.3,1.23258252]
[1768209975952,3.45839742,3122.4,3121.3,1.23258252]
[1768209976154,4.22448523,3122.3,3121.3,1.23258252]
[1768209976356,0.76886284,3122.2,3121.3,1.23258252]
[1768209976747,3.45562239,3122.0,3121.1,0.00271632]
[1768209976947,4.22448523,3121.9,3121.1,0.00271632]
[1768209977148,0.76921785,3121.8,3121.1,0.00271632]
[1768209977347,3.45562239,3121.9,3120.7,0.16042]
[1768209977553,0.76929543,3121.8,3120.7,0.16042]
[1768209977851,0.76929543,3121.7,3120.7,0.16042]
[1768209978045,3.45562239,3121.9,3120.7,0.16042]
[1768209978241,0.76929637,3121.8,3120.7,0.16042]
[1768209978452,0.76929637,3121.7,3120.7,0.16273388]
[1768209978655,3.45562239,3121.9,3120.7,0.16273388]
[1768209978845,0.76939236,3121.8,3120.7,0.16273388]
[1768209979045,0.76939236,3121.7,3120.7,0.16273388]
[1768209979245,3.45562239,3121.9,3120.7,0.16273388]
[1768209979546,0.76953877,3121.8,3120.7,0.16273388]
[1768209979747,0.76953877,3121.7,3120.7,0.16273388]
[1768209979951,3.45562239,3121.9,3120.7,0.16273388]
[1768209980154,0.769539,3121.8,3120.7,0.16273388]
[1768209980345,0.769539,3121.7,3120.7,0.16273388]
[1768209980547,3.45562239,3121.9,3120.7,0.16273388]
[1768209980748,0.76963778,3121.8,3120.7,0.16273388]
[1768209980950,0.76963778,3121.7,3120.7,0.16273388]
[1768209981153,3.45562239,3121.9,3120.7,0.16273388]
[1768209981343,0.76963831,3121.8,3120.7,0.16273388]
[1768209981641,0.76963831,3121.7,3120.7,0.16273388]
[1768209981846,3.45562239,3121.9,3120.7,0.16273388]
[1768209982056,0.76978228,3121.8,3120.7,0.16273388]
[1768209982257,0.76978228,3121.7,3120.7,1.39684476]
[1768209982449,3.45562239,3122.3,3120.7,1.39684476]
[1768209982650,4.2255687,3122.2,3120.7,0.16273388]
[1768209982951,4.2255687,3122.1,3120.7,0.16273388]
[1768209983151,0.76994631,3122.0,3120.7,0.16273388]
[1768209983458,4.2255687,3122.0,3120.7,0.16273388]
[1768209983763,0.76994631,3121.9,3120.7,0.16273388]
[1768209985058,0.76994631,3121.9,3120.7,1.39684476]
[1768209988553,4.2255687,3121.9,3120.7,0.16273388]
[1768209988758,0.76994631,3121.8,3120.7,0.16273388]
[1768209989154,4.2255687,3121.8,3119.9,3.59293787]
[1768209989461,3.45562239,3121.5,3119.8,0.16047]
[1768209989647,3.45562239,3121.3,3119.8,0.16047]
[1768209989848,4.2255687,3121.2,3119.8,0.16047]
[1768209990051,0.76994631,3121.1,3119.8,0.16047]
[1768209990252,0.76994631,3121.1,3119.8,0.16426119]
[1768209990751,4.2255687,3121.1,3119.8,0.16426119]
[1768209990952,0.76994631,3121.0,3119.8,0.16426119]
[1768209992255,4.2255687,3121.0,3119.8,0.16426119]
[1768209992448,0.76994631,3120.9,3119.8,0.16426119]
[1768209992956,4.2255687,3120.9,3119.8,0.00379119]
[1768209993160,4.2255687,3120.8,3119.8,0.00379119]
[1768209993461,0.76994631,3120.7,3119.8,0.00379119]
[1768209993652,4.2255687,3120.7,3119.8,0.00379119]
[1768209993961,0.76994631,3120.6,3119.8,0.00379119]
[1768209994857,4.37191045,3120.6,3119.2,0.1605]
[1768209995059,3.60196414,3120.4,3119.2,0.1605]
[1768209995749,3.60196414,3120.4,3119.2,0.00347817]
[1768209996261,0.77204081,3120.3,3119.2,0.00347817]
[1768209996451,3.60196414,3120.4,3119.2,0.00347817]
[1768209998563,3.60196414,3120.2,3119.2,0.00347817]
[1768209998762,3.60575252,3120.2,3119.2,0.00347817]
[1768209999153,4.36301944,3120.1,3119.2,0.00347817]
[1768209999355,4.36301944,3120.1,3118.2,42.51463723]
[1768209999356,0.7607479,3120.0,3118.5,1.572]
[1768209999562,4.36273191,3119.9,3118.5,1.572]
[1768209999762,3.60196414,3119.9,3118.5,1.572]
[1768210000360,3.60196414,3119.9,3118.5,1.57536813]
[1768210003963,3.60196414,3119.9,3118.5,0.00336813]
[1768210010974,0.7591246,3119.8,3118.5,0.00336813]
[1768210011169,3.60196414,3119.7,3118.5,0.00336813]
[1768210013777,3.60196414,3119.5,3118.5,0.00336813]
[1768210016076,3.76243414,3119.9,3118.5,0.00336813]
[1768210016278,0.76002323,3119.8,3118.5,0.00336813]
[1768210016475,0.76002323,3119.7,3118.5,0.00336813]
[1768210016779,0.76002323,3119.6,3118.5,0.00336813]
[1768210017081,0.76002323,3119.5,3118.5,0.00336813]
[1768210017380,0.76086786,3119.4,3118.5,0.00336813]
[1768210017578,3.60196414,3119.8,3118.5,0.00336813]
[1768210017776,4.36282572,3119.7,3118.5,0.00336813]
[1768210017970,0.76086158,3119.6,3118.5,0.00336813]
[1768210018172,0.76086158,3119.5,3118.5,0.00336813]
[1768210018372,0.76086158,3119.4,3118.5,0.00336813]
[1768210018568,3.60196414,3119.7,3118.5,0.00336813]
[1768210018773,0.76146894,3119.6,3118.5,0.00336813]
[1768210018973,0.76146894,3119.5,3118.5,0.00336813]
[1768210019174,0.76146894,3119.4,3118.5,0.00336813]
[1768210019477,0.76171167,3119.3,3118.5,0.00336813]
[1768210019781,3.60196414,3119.7,3118.5,0.00336813]
[1768210019969,0.76171075,3119.6,3118.5,0.00336813]
[1768210020173,0.76171075,3119.5,3118.5,0.00336813]
[1768210020376,3.60196414,3119.7,3118.5,0.00336813]
[1768210020377,0.76171075,3119.4,3118.5,0.00336813]
[1768210020669,0.76171075,3119.3,3118.5,0.00336813]
[1768210020871,3.60196414,3119.5,3118.5,0.00336813]
[1768210021082,4.36391224,3119.4,3118.5,0.00336813]
[1768210021285,4.36391224,3119.3,3118.5,0.00336813]
[1768210021484,0.76224628,3119.2,3118.5,0.00336813]
[1768210021675,3.60196414,3119.3,3118.5,0.00336813]
[1768210021875,4.36423551,3119.2,3118.5,0.00336813]
[1768210022071,3.60196414,3119.2,3118.5,0.00336813]
[1768210022988,0.16047,3119.8,3118.5,0.00336813]
[1768210023195,4.364587,3119.7,3118.5,0.00336813]
[1768210023484,4.364587,3119.6,3118.5,0.00336813]
[1768210023687,0.76262286,3119.5,3118.5,0.00336813]
[1768210028996,4.38454735,3119.5,3118.5,0.00336813]
[1768210029200,4.38454735,3119.4,3118.5,0.00336813]
[1768210029499,4.38454735,3119.3,3118.5,0.00336813]
[1768210029698,4.38454735,3119.2,3117.8,1.23411088]
[1768210029899,4.38454735,3119.1,3117.8,1.23411088]
[1768210030099,0.76262286,3119.0,3117.8,1.23411088]
[1768210030301,0.76262286,3118.9,3117.8,1.23411088]
[1768210030499,0.76262286,3118.8,3117.8,1.23411088]
[1768210030801,0.76262286,3118.7,3117.8,1.2371415]
[1768210030996,0.76262286,3118.6,3117.8,1.2371415]
[1768210031200,0.76262286,3118.5,3117.8,0.00303062]
[1768210031392,0.76262286,3118.4,3117.8,0.00303062]
[1768210031592,3.62192449,3119.1,3117.8,0.00303062]
[1768210031796,4.3286845,3119.0,3117.8,0.00303062]
[1768210031990,0.76025745,3118.9,3117.8,0.00303062]
[1768210032301,0.76025745,3118.8,3117.8,0.00303062]
[1768210032599,0.76025745,3118.7,3117.8,0.00303062]
[1768210032801,0.76025745,3118.6,3117.8,0.00303062]
[1768210032993,0.76025745,3118.5,3117.8,0.00303062]
[1768210033192,0.76025745,3118.4,3117.8,0.00303062]
[1768210033394,3.56842705,3119.0,3117.8,0.00303062]
[1768210033594,0.76009239,3118.9,3117.8,0.00303062]
[1768210033798,0.76009239,3118.8,3117.8,0.00303062]
[1768210033999,0.76009239,3118.7,3117.8,0.00303062]
[1768210034301,3.56842705,3119.0,3117.8,0.00303062]
[1768210034504,0.7600392,3118.9,3117.8,0.00303062]
[1768210034806,0.7600392,3118.8,3117.8,0.00303062]
[1768210034998,0.7600392,3118.7,3117.8,0.00303062]
[1768210035301,3.56842705,3119.0,3117.8,0.00303062]
[1768210035604,1.472,3119.3,3117.8,0.00303062]
[1768210035605,3.56842705,3118.8,3117.8,0.00303062]
[1768210035904,0.76000939,3118.7,3117.8,0.00303062]
[1768210036405,0.76000939,3118.7,3117.9,1.23411088]
[1768210036595,3.56842705,3119.2,3117.9,1.23411088]
[1768210039405,3.56842705,3119.2,3118.5,1.23580245]
[1768210039806,5.83105095,3119.6,3118.5,1.23580245]
[1768210039998,0.28940729,3119.5,3118.7,1.23580245]
[1768210040193,3.56842705,3119.6,3119.1,1.23580245]
[1768210040399,3.56842705,3119.6,3118.9,1.23580245]
[1768210040598,5.83105095,3120.0,3118.9,1.23580245]
[1768210040801,0.2894076,3119.9,3119.1,1.23580245]
[1768210041110,0.2894076,3119.8,3119.1,1.23580245]
[1768210041305,3.56842705,3120.0,3119.1,1.23580245]
[1768210041502,0.28936371,3119.9,3119.1,1.23580245]
[1768210041701,0.28936371,3119.8,3119.1,1.23580245]
[1768210041903,3.56842705,3120.0,3119.1,1.23580245]
[1768210042110,0.28937892,3119.9,3119.3,1.23580245]
[1768210042407,0.28937892,3119.8,3119.3,1.23580245]
[1768210042607,3.56842705,3120.0,3119.3,1.23580245]
[1768210042803,0.28936548,3119.9,3119.3,1.23580245]
[1768210043002,3.56842705,3120.0,3119.3,1.23580245]
[1768210043003,0.28936548,3119.8,3119.3,1.23580245]
[1768210043209,0.00378838,3120.2,3119.3,1.23580245]
[1768210043409,0.2893629,3120.1,3119.3,1.23580245]
[1768210043711,0.2893629,3120.0,3119.3,1.23580245]
[1768210044009,0.00378838,3120.2,3119.3,1.23580245]
[1768210044010,0.2893629,3119.9,3119.3,1.23580245]
[1768210044205,0.00378838,3120.2,3119.3,1.23580245]
[1768210044408,0.28933017,3120.1,3119.3,1.23580245]
[1768210044611,0.28933017,3120.0,3119.3,1.23580245]
[1768210044806,0.28933017,3119.9,3119.1,1.23580245]
[1768210044999,0.28933017,3119.8,3119.1,1.23580245]
[1768210045201,0.00378838,3120.2,3119.1,1.23580245]
[1768210045409,0.28930188,3120.1,3119.1,1.23580245]
[1768210045610,0.28930188,3120.0,3119.1,1.23580245]
[1768210045907,0.28930188,3119.9,3119.1,1.23580245]
[1768210046110,0.28930188,3119.8,3119.1,1.23580245]
[1768210046305,0.00378838,3120.2,3119.1,1.23580245]
[1768210046504,0.28924663,3120.1,3119.1,1.23580245]
[1768210046706,0.28924663,3120.0,3119.1,1.23580245]
[1768210047006,0.28924663,3119.9,3119.1,1.23580245]
[1768210047206,0.28924663,3119.8,3119.1,1.23580245]
[1768210047405,0.00378838,3120.2,3119.1,1.23580245]
[1768210047609,0.28922232,3120.1,3118.6,3.49318032]
[1768210047805,0.28922232,3120.0,3119.2,1.23580245]
[1768210048005,0.28922232,3119.9,3119.2,1.23580245]
[1768210048212,0.28922232,3119.8,3119.2,1.23580245]
[1768210048413,0.00378838,3120.2,3119.2,1.23580245]
[1768210048711,1.03419009,3120.1,3119.2,1.23580245]
[1768210049011,1.03419009,3120.0,3119.2,1.23580245]
[1768210049210,1.03419009,3119.9,3119.2,1.23580245]
[1768210049409,1.03419009,3119.8,3119.2,1.23580245]
[1768210049612,0.74499113,3119.7,3119.2,1.23580245]
[1768210049914,0.74499113,3119.6,3119.2,1.23580245]
[1768210050114,0.72568751,3119.5,3119.2,1.23580245]
[1768210050314,0.00378838,3120.2,3118.6,3.49318032]
[1768210050611,0.28917051,3120.1,3119.2,1.23580245]
[1768210050812,0.28917051,3120.0,3119.2,1.23580245]
[1768210051112,0.28917051,3119.9,3119.2,1.23580245]
[1768210051300,0.28917051,3119.8,3119.2,1.23580245]
[1768210051502,0.00378838,3120.2,3119.2,1.23580245]
[1768210051714,0.28915198,3120.1,3119.2,1.23580245]
[1768210051916,0.00378838,3120.2,3119.4,1.23580245]
[1768210052109,0.28913752,3120.1,3119.4,1.23580245]
[1768210052415,0.00378838,3120.2,3119.4,1.23580245]
[1768210052615,0.28907853,3120.1,3119.4,1.23580245]
[1768210052816,0.00378838,3120.2,3119.4,1.23580245]
[1768210053115,0.28907844,3120.1,3119.4,1.23580245]
[1768210053317,0.00378838,3120.2,3119.4,1.23580245]
[1768210053508,0.28902896,3120.1,3119.4,1.23580245]
[1768210053709,0.00378838,3120.2,3119.2,1.23580245]
[1768210054010,0.28903639,3120.1,3119.2,1.23580245]
[1768210054217,0.00378838,3120.2,3119.2,1.23580245]
[1768210054407,0.28900233,3120.1,3119.2,1.23580245]
[1768210054601,0.28900233,3120.0,3119.2,1.23580245]
[1768210054817,0.28900233,3119.9,3118.7,0.16053]
[1768210055017,0.28900233,3119.8,3118.9,1.23580245]
[1768210055313,0.28900233,3119.7,3118.9,1.23580245]
[1768210055514,3.30348635,3120.1,3118.9,1.23580245]
[1768210055716,0.28898963,3120.0,3118.9,1.23580245]
[1768210055915,0.28898963,3119.9,3118.9,1.23580245]
[1768210056106,0.28898963,3119.8,3118.9,1.23580245]
[1768210056306,0.28898963,3119.7,3118.9,1.23580245]
[1768210056517,3.30348635,3120.1,3118.9,1.23580245]
[1768210056718,0.28896609,3120.0,3118.9,1.23580245]
[1768210057016,0.28896609,3119.9,3118.9,1.23580245]
[1768210057315,0.28896609,3119.8,3118.9,1.23580245]
[1768210057503,3.30348635,3120.1,3119.1,1.23580245]
[1768210057709,0.28894625,3120.0,3119.1,1.23580245]
[1768210057906,0.28894625,3119.9,3119.1,1.23580245]
[1768210058116,0.28894625,3119.8,3119.1,1.23580245]
[1768210058317,3.30348635,3120.1,3119.1,1.23580245]
[1768210058513,0.28892771,3120.0,3119.1,1.23580245]
[1768210058819,0.28892771,3119.9,3119.1,1.23580245]
[1768210059123,0.28892771,3119.8,3119.1,1.23580245]
[1768210059418,3.30348635,3120.1,3119.1,1.23580245]
[1768210059716,0.2889118,3120.0,3119.1,1.23580245]
[1768210059908,0.2889118,3119.9,3119.1,1.23580245]
[1768210060110,0.2889118,3119.8,3119.1,1.23580245]
[1768210060311,3.30348635,3120.1,3119.1,1.23580245]
[1768210060512,0.28892385,3120.0,3119.1,1.23580245]
[1768210060713,0.28892385,3119.9,3119.1,1.23580245]
[1768210060910,0.28892385,3119.8,3119.1,1.23580245]
[1768210061110,3.30348635,3120.1,3119.1,1.23580245]
[1768210061320,0.28892385,3120.0,3119.1,1.23580245]
[1768210061616,0.28892385,3119.9,3119.1,1.23580245]
[1768210061816,3.30348635,3120.1,3119.1,1.23580245]
[1768210061817,0.28892385,3119.8,3119.1,1.23580245]
[1768210062022,0.73942182,3119.7,3119.1,1.23580245]
[1768210062220,3.30348635,3120.1,3119.1,1.23580245]
[1768210062413,1.02844429,3120.0,3119.1,1.23580245]
[1768210062606,1.02844429,3119.9,3119.1,1.23580245]
[1768210062814,0.00378838,3120.2,3119.7,1.23580245]
[1768210063419,0.00378838,3120.2,3119.9,1.23580245]
[1768210063719,3.7396239,3121.1,3120.1,1.23580245]
[1768210063915,1.477,3121.2,3120.1,1.23580245]
[1768210064115,2.2626239,3121.1,3120.1,1.23580245]
[1768210064319,3.7396239,3121.2,3120.1,1.23580245]
[1768210064521,2.2626239,3121.2,3120.1,1.23580245]
[1768210064711,2.26633252,3121.2,3120.1,1.2381377]
[1768210069130,2.26633252,3121.2,3120.1,0.00233525]
[1768210071926,1.48670862,3121.2,3120.2,1.23580245]
[1768210073829,1.48670862,3121.2,3120.1,0.00233525]
[1768210074030,1.48670862,3121.2,3120.2,1.23580245]
[1768210074829,1.02627521,3121.1,3120.2,1.23580245]
[1768210075035,1.02627521,3121.0,3120.2,1.23580245]
[1768210075236,0.7398228,3120.9,3120.2,1.23580245]
[1768210075537,0.7398228,3120.8,3120.2,1.23580245]
[1768210075741,0.7398228,3120.7,3120.2,1.23580245]
[1768210075927,0.73634463,3120.6,3120.2,1.23580245]
[1768210076130,0.00370862,3121.2,3120.2,1.23580245]
[1768210076337,0.2864406,3121.1,3120.2,1.23580245]
[1768210076638,0.2864406,3121.0,3120.2,1.23580245]
[1768210076837,0.00370862,3121.2,3120.2,1.23580245]
[1768210077138,0.28643647,3121.1,3120.2,1.23580245]
[1768210077340,0.28643647,3121.0,3120.2,1.23580245]
[1768210077534,0.00370862,3121.2,3120.2,1.23580245]
[1768210077732,0.28644039,3121.1,3120.2,1.23580245]
[1768210077931,0.28644039,3121.0,3120.2,1.23580245]
[1768210078132,0.00370862,3121.2,3120.2,1.23580245]
[1768210078440,0.28644033,3121.1,3120.2,1.23580245]
[1768210078639,0.28644033,3121.0,3120.2,1.23580245]
[1768210078842,0.00370862,3121.2,3120.2,1.23580245]
[1768210079031,0.28645141,3121.1,3120.2,1.23580245]
[1768210079232,0.28645141,3121.0,3120.2,1.23580245]
[1768210079426,0.00370862,3121.2,3120.2,1.23580245]
[1768210079634,0.28647071,3121.1,3120.2,1.23580245]
[1768210079832,0.28647071,3121.0,3120.2,1.23580245]
[1768210080143,0.00370862,3121.2,3120.2,1.23580245]
[1768210080339,0.28647071,3121.1,3120.2,1.23580245]
[1768210080537,0.28647071,3121.0,3120.2,1.23580245]
[1768210080738,0.00370862,3121.2,3120.2,1.23580245]
[1768210080941,0.28649527,3121.1,3120.2,1.23580245]
[1768210081139,0.28649527,3121.0,3120.2,1.23580245]
[1768210081335,0.28653082,3120.9,3120.2,1.23580245]
[1768210081535,0.00370862,3121.2,3120.2,1.23580245]
[1768210081735,0.28653081,3121.1,3120.2,1.23580245]
[1768210081936,0.28653081,3121.0,3120.1,0.00233525]
[1768210082137,3.59001716,3120.9,3120.1,0.00233525]
[1768210082332,1.23951107,3121.2,3119.3,3.31303497]
[1768210082333,1.23580245,3120.3,3119.3,3.31303497]
[1768210082538,3.30348635,3120.5,3118.9,4.54883742]
[1768210082732,1.23580245,3120.2,3118.9,4.54883742]
[1768210083343,1.23580245,3120.2,3118.9,4.55205354]
[1768210083543,1.23580245,3120.4,3119.1,1.23580245]
[1768210083745,3.30348635,3120.5,3119.1,1.23580245]
[1768210084044,0.28663084,3120.4,3119.2,1.23580245]
[1768210084343,3.30348635,3120.5,3119.2,1.23580245]
[1768210084545,0.2866568,3120.4,3119.2,1.23580245]
[1768210084737,3.30348635,3120.5,3119.2,1.23580245]
[1768210084937,0.28665684,3120.4,3119.2,1.23580245]
[1768210085138,3.30348635,3120.5,3119.2,1.23580245]
[1768210085346,0.28665678,3120.4,3119.2,1.23580245]
[1768210085640,3.30348635,3120.5,3119.2,1.23580245]
[1768210085842,0.28669775,3120.4,3119.2,1.23580245]
[1768210086040,3.30348635,3120.5,3119.2,1.23580245]
[1768210086246,0.2866977,3120.4,3119.2,1.23580245]
[1768210086448,0.2866977,3120.3,3119.2,1.23580245]
[1768210086645,3.30348635,3120.5,3119.2,1.23580245]
[1768210086845,0.28671997,3120.4,3119.2,1.23580245]
[1768210087148,0.28671997,3120.3,3119.2,1.23580245]
[1768210087348,3.30348635,3120.5,3119.2,1.23580245]
[1768210087653,0.2867558,3120.4,3119.2,1.23580245]
[1768210087845,1.02760826,3120.3,3119.2,1.23580245]
[1768210088046,0.74085246,3120.2,3119.2,1.23580245]
[1768210088349,0.74085246,3120.1,3119.3,1.23580245]
[1768210088545,0.74085246,3120.0,3119.3,1.23580245]
[1768210088749,3.30348635,3120.5,3119.3,1.23580245]
[1768210088949,1.02765154,3120.4,3119.3,1.23580245]
[1768210089150,1.02765154,3120.3,3119.3,1.23580245]
[1768210089340,0.74086204,3120.2,3119.3,1.23580245]
[1768210089543,0.74086204,3120.1,3119.3,1.23580245]
[1768210089746,0.74086204,3120.0,3119.3,1.23580245]
[1768210090052,3.30348635,3120.5,3119.3,1.23580245]
[1768210090253,1.02777891,3120.4,3119.3,1.23580245]
[1768210090453,1.02777891,3120.3,3119.3,1.23580245]
[1768210090656,0.74095389,3120.2,3119.3,1.23580245]
[1768210090856,0.74095389,3120.1,3119.3,1.23580245]
[1768210091043,0.74095389,3120.0,3119.3,1.23580245]
[1768210091355,0.74114782,3119.9,3119.3,1.23580245]
[1768210091549,3.30348635,3120.5,3119.3,1.23580245]
[1768210091750,1.02804783,3120.4,3119.3,1.23580245]
[1768210091949,1.02804783,3120.3,3119.3,1.23580245]
[1768210092247,0.74114783,3120.2,3119.3,1.23580245]
[1768210092555,0.74114783,3120.1,3119.3,1.23580245]
[1768210092743,0.74114783,3120.0,3119.3,1.23580245]
[1768210092945,0.74114783,3119.9,3119.3,1.23580245]
[1768210093146,3.30348635,3120.5,3119.3,1.23580245]
[1768210093347,1.02816325,3120.4,3119.3,1.23580245]
[1768210093547,1.02816325,3120.3,3119.3,1.23580245]
[1768210093748,1.02816325,3120.2,3119.3,1.23580245]
[1768210094049,0.74122506,3120.1,3119.3,1.23580245]
[1768210094242,0.74122506,3120.0,3119.3,1.23580245]
[1768210094444,0.74122506,3120.0,3118.9,3.31625109]
[1768210094445,4.54354596,3120.2,3118.9,3.31625109]
[1768210094650,4.54354596,3120.0,3118.9,0.00321612]
[1768210094959,0.74122271,3119.9,3118.9,0.00321612]
[1768210095656,4.04896622,3119.9,3118.9,0.00321612]
[1768210095951,0.74122271,3119.8,3118.9,0.00321612]
[1768210096152,0.74122271,3119.7,3118.9,0.00321612]
[1768210096356,3.30774351,3119.9,3118.9,0.00321612]
[1768210096357,0.74122271,3119.6,3118.9,0.00321612]
[1768210096552,3.30774351,3119.9,3118.9,0.00321612]
[1768210096756,0.74101605,3119.8,3118.9,0.00321612]
[1768210096955,0.74101605,3119.7,3118.9,0.00321612]
[1768210097157,0.74101605,3119.6,3118.9,0.00321612]
[1768210097354,3.30774351,3119.9,3118.9,0.00321612]
[1768210097657,0.74086571,3119.8,3118.9,0.00321612]
[1768210097858,0.74086571,3119.7,3118.9,0.00321612]
[1768210098159,3.30774351,3119.9,3118.9,0.00321612]
[1768210098456,0.74075359,3119.8,3118.9,0.00321612]
[1768210098653,0.74075359,3119.7,3118.9,0.00321612]
[1768210098850,3.30774351,3119.9,3118.9,0.00321612]
[1768210099053,0.74074604,3119.8,3118.9,0.00321612]
[1768210099252,0.74074604,3119.7,3118.9,0.00321612]
[1768210099454,3.30774351,3119.9,3118.9,0.00321612]
[1768210099658,0.74065421,3119.8,3118.9,0.00321612]
[1768210099857,0.74065421,3119.7,3118.9,0.00321612]
[1768210100158,3.30774351,3119.9,3118.9,0.00321612]
[1768210100358,0.74058377,3119.8,3118.9,0.00321612]
[1768210100558,0.74058377,3119.7,3118.9,0.00321612]
[1768210100759,3.30774351,3119.9,3118.9,0.00321612]
[1768210100959,0.74058495,3119.8,3118.9,0.00321612]
[1768210101160,0.74058495,3119.7,3118.9,0.00321612]
[1768210101363,3.30774351,3119.9,3118.9,0.00321612]
[1768210101563,0.74053867,3119.8,3118.9,0.00321612]
[1768210101763,0.74053867,3119.7,3118.9,0.00321612]
[1768210101963,3.30774351,3119.9,3118.9,0.00321612]
[1768210102261,0.74053827,3119.8,3118.9,0.00321612]
[1768210102462,0.74053827,3119.7,3118.9,0.00321612]
[1768210102763,3.30774351,3119.9,3118.9,0.00321612]
[1768210103062,0.74053865,3119.8,3118.9,0.00321612]
[1768210103260,0.74053865,3119.7,3118.9,0.00321612]
[1768210103461,3.30774351,3119.9,3118.9,0.00321612]
[1768210103665,0.74055844,3119.8,3118.9,0.00321612]
[1768210103864,0.74055844,3119.7,3118.9,0.00321612]
[1768210104055,3.30774351,3119.9,3118.9,0.00321612]
[1768210104364,0.74055844,3119.8,3118.9,0.00321612]
[1768210104563,0.74055844,3119.7,3118.9,0.00321612]
[1768210104752,3.30774351,3119.9,3118.9,0.00321612]
[1768210104956,1.02729033,3119.8,3118.9,0.00321612]
[1768210105163,0.74060146,3119.7,3118.9,0.00321612]
[1768210105362,3.30774351,3119.9,3118.9,0.00321612]
[1768210105663,1.02738631,3119.8,3118.9,0.00321612]
[1768210105862,0.74067067,3119.7,3118.9,0.00321612]
[1768210106062,3.30774351,3119.9,3118.9,0.00321612]
[1768210106264,1.0273859,3119.8,3118.9,0.00321612]
[1768210106463,0.74067038,3119.7,3118.9,0.00321612]
[1768210106668,3.30774351,3119.9,3118.9,0.00321612]
[1768210106965,1.02752197,3119.8,3118.9,0.00321612]
[1768210107167,0.74076851,3119.7,3118.9,0.00321612]
[1768210107357,3.30774351,3119.9,3118.9,0.00321612]
[1768210107557,1.02769942,3119.8,3118.9,0.00321612]
[1768210107863,0.74089648,3119.7,3118.9,0.00321612]
[1768210108063,3.30774351,3119.9,3118.9,0.00321612]
[1768210108264,1.02770951,3119.8,3118.9,0.00321612]
[1768210108463,1.02770951,3119.7,3118.9,0.00321612]
[1768210108664,0.74090373,3119.6,3118.9,0.00321612]
[1768210108965,3.30774351,3119.9,3118.9,0.00321612]
[1768210109166,1.02793601,3119.8,3118.9,0.00321612]
[1768210109364,1.02793601,3119.7,3118.9,0.00321612]
[1768210109552,0.7410671,3119.6,3118.9,0.00321612]
[1768210109758,3.30774351,3119.9,3118.9,0.00321612]
[1768210109958,1.02822781,3119.8,3118.9,0.00321612]
[1768210110172,1.02822781,3119.7,3118.9,0.00321612]
[1768210110363,0.74127757,3119.6,3118.9,0.00321612]
[1768210110563,3.30774351,3119.9,3118.9,0.00321612]
[1768210110761,1.02825748,3119.8,3118.9,0.00321612]
[1768210110959,1.02825748,3119.7,3118.9,0.00321612]
[1768210111269,1.0283557,3119.6,3118.9,0.00321612]
[1768210111462,0.74129887,3119.5,3118.9,0.00321612]
[1768210111663,3.30774351,3119.9,3118.9,0.00321612]
[1768210111964,1.02861145,3119.8,3118.9,0.00321612]
[1768210112163,1.02861145,3119.7,3118.9,0.00321612]
[1768210112361,1.02861145,3119.6,3118.9,0.00321612]
[1768210112570,0.74155423,3119.5,3118.9,0.00321612]
[1768210112868,3.30774351,3119.9,3118.9,0.00321612]
[1768210113169,1.02896986,3119.8,3118.9,0.00321612]
[1768210113369,1.02896986,3119.7,3118.9,0.00321612]
[1768210113567,1.02896986,3119.6,3118.9,0.00321612]
[1768210113870,0.74182052,3119.5,3118.9,0.00321612]
[1768210114064,0.74182052,3119.4,3118.9,0.00321612]
[1768210114269,0.74182052,3119.3,3118.9,0.00321612]
[1768210114472,0.74182052,3119.2,3118.9,0.00321612]
[1768210114672,3.30774351,3119.9,3118.9,0.00321612]
[1768210114859,1.02907135,3119.8,3118.9,0.00321612]
[1768210115170,0.74189368,3119.7,3118.9,0.00321612]
[1768210115468,0.74189368,3119.6,3118.9,0.00321612]
[1768210115670,0.74189368,3119.5,3118.9,0.00321612]
[1768210115870,0.74189368,3119.4,3118.9,0.00321612]
[1768210116072,0.74189368,3119.3,3118.9,0.00321612]
[1768210116272,0.74189368,3119.2,3118.9,0.00321612]
[1768210116472,3.30774351,3119.9,3118.9,0.00321612]
[1768210116673,1.02919959,3119.8,3118.9,0.00321612]
[1768210116870,0.74198632,3119.7,3118.9,0.00321612]
[1768210117070,0.74198632,3119.6,3118.9,0.00321612]
[1768210117376,0.74198632,3119.5,3118.9,0.00321612]
[1768210117578,0.74198632,3119.4,3118.9,0.00321612]
[1768210117873,0.74198632,3119.3,3118.9,0.00321612]
[1768210118175,0.74198632,3119.2,3118.9,0.00321612]
[1768210118373,3.30774351,3119.9,3118.4,4.69983021]
[1768210118579,1.02936943,3119.8,3118.4,4.69983021]
[1768210118775,1.02936943,3119.7,3118.4,4.69983021]
[1768210119078,0.74210877,3119.6,3118.4,4.69983021]
[1768210119277,0.74210877,3119.5,3118.5,3.46579718]
[1768210119575,0.74210877,3119.4,3118.5,3.46931379]
[1768210119770,0.74210877,3119.3,3118.5,3.46931379]
[1768210119967,0.74210877,3119.2,3118.5,3.46931379]
[1768210120172,5.58969009,3120.0,3118.5,3.46931379]